fUST/lending_fUST_20240911
["ID","MTS","AMOUNT","RATE_DAILY","PERIOD"]
[337719843,1725987094005,-151.0,0.00019727,2]
[337719844,1725987094015,-800.96,0.00019727,2]
[337719845,1725987094025,-649.67,0.00019727,2]
[337719846,1725987094035,-588.79,0.00019727,2]
[337719847,1725987094045,-1531.75,0.00019727,2]
[337719848,1725987094055,-677.0,0.00019727,2]
[337719849,1725987094064,-582.35,0.00019727,2]
[337719850,1725987094074,-1661.25,0.00019727,2]
[337719851,1725987094084,-500.0,0.00019727,2]
[337719852,1725987094098,-151.0,0.00019727,2]
[337719853,1725987094108,-902.12,0.00019727,2]
[337719854,1725987094118,-622.64922883,0.00019727,2]
[337719855,1725987094128,-238.326154,0.00019727,2]
[337719856,1725987094138,-1161.67,0.00019727,2]
[337719857,1725987094147,-1545.8,0.00019727,2]
[337719858,1725987094158,-1031.96,0.00019727,2]
[337719859,1725987094167,-500.0,0.00019727,2]
[337719860,1725987094177,-1005.54,0.00019727,2]
[337719861,1725987094187,-801.25,0.00019727,2]
[337719862,1725987094196,-682.45,0.00019727,2]
[337719863,1725987094206,-1528.95,0.00019727,2]
[337719864,1725987094216,-686.42,0.00019727,2]
[337719865,1725987094226,-621.46632066,0.00019727,2]
[337719866,1725987094235,-500.0,0.00019727,2]
[337719867,1725987094244,-3196.6,0.00019727,2]
[337719868,1725987094254,-1720.38,0.00019727,2]
[337719869,1725987094264,-580.2,0.00019727,2]
[337719870,1725987094273,-2053.93,0.00019727,2]
[337719871,1725987094282,-500.0,0.00019727,2]
[337719872,1725987094291,-500.0,0.00019727,2]
[337719873,1725987094301,-1653.22,0.00019727,2]
[337719874,1725987094311,-2581.4,0.00019727,2]
[337719875,1725987094321,-500.0,0.00019727,2]
[337719876,1725987094331,-170.9703472,0.00019727,2]
[337719877,1725987094342,-500.0,0.00019727,2]
[337719878,1725987094350,-582.87,0.00019727,2]
[337719879,1725987094359,-665.52,0.00019727,2]
[337719880,1725987094369,-500.0,0.00019727,2]
[337719881,1725987094379,-500.0,0.00019727,2]
[337719882,1725987094390,-624.21,0.00019727,2]
[337719883,1725987094399,-796.18,0.00019727,2]
[337719884,1725987094409,-558.59308505,0.00019727,2]
[337719885,1725987094419,-500.0,0.00019727,2]
[337719886,1725987094428,-1602.56,0.00019727,2]
[337719887,1725987094437,-1153.39,0.00019727,2]
[337719888,1725987094446,-979.44,0.00019727,2]
[337719889,1725987094456,-629.96,0.00019727,2]
[337719890,1725987094465,-931.29,0.00019727,2]
[337719891,1725987094476,-500.0,0.00019727,2]
[337719892,1725987094485,-1387.23,0.00019727,2]
[337719893,1725987094495,-516.8,0.00019727,2]
[337719894,1725987094505,-1249.15,0.00019727,2]
[337719895,1725987094515,-500.0,0.00019727,2]
[337719896,1725987094526,-507.63,0.00019727,2]
[337719897,1725987094535,-3108.36,0.00019727,2]
[337719898,1725987094545,-1950.86,0.00019727,2]
[337719899,1725987094555,-513.58,0.00019727,2]
[337719900,1725987094564,-500.0,0.00019727,2]
[337719901,1725987094575,-1468.78,0.00019727,2]
[337719902,1725987094585,-4251.41,0.00019727,2]
[337719903,1725987094596,-500.0,0.00019727,2]
[337719904,1725987094606,-500.0,0.00019727,2]
[337719905,1725987094616,-500.0,0.00019727,2]
[337719906,1725987094626,-500.0,0.00019727,2]
[337719907,1725987094637,-433.77958859,0.00019727,2]
[337719908,1725987094647,-818.77,0.00019727,2]
[337719909,1725987094658,-500.0,0.00019727,2]
[337719910,1725987094668,-500.0,0.00019727,2]
[337719911,1725987094677,-547.21,0.00019727,2]
[337719912,1725987094687,-889.36,0.00019727,2]
[337719913,1725987094698,-500.0,0.00019727,2]
[337719914,1725987094707,-948.67,0.00019727,2]
[337719915,1725987094717,-653.85,0.00019727,2]
[337719916,1725987094728,-527.0,0.00019727,2]
[337719917,1725987094738,-1596.56,0.00019727,2]
[337719918,1725987094748,-626.02,0.00019727,2]
[337719919,1725987094758,-500.0,0.00019727,2]
[337719920,1725987094767,-500.0,0.00019727,2]
[337719921,1725987094777,-553.2,0.00019727,2]
[337719922,1725987094787,-848.19,0.00019727,2]
[337719923,1725987094797,-500.0,0.00019727,2]
[337719924,1725987094807,-500.0,0.00019727,2]
[337719925,1725987094816,-882.16,0.00019727,2]
[337719926,1725987094825,-500.0,0.00019727,2]
[337719927,1725987094835,-578.17,0.00019727,2]
[337719928,1725987094846,-841.44,0.00019727,2]
[337719929,1725987094855,-500.0,0.00019727,2]
[337719930,1725987094865,-642.34,0.00019727,2]
[337719931,1725987094874,-791.11,0.00019727,2]
[337719932,1725987094885,-500.0,0.00019727,2]
[337719933,1725987094896,-1895.41,0.00019727,2]
[337719934,1725987094905,-500.0,0.00019727,2]
[337719935,1725987094915,-980.57,0.00019727,2]
[337719936,1725987094924,-500.0,0.00019727,2]
[337719937,1725987094936,-2400.44,0.00019727,2]
[337719938,1725987094945,-500.0,0.00019727,2]
[337719939,1725987094956,-1124.28,0.00019727,2]
[337719940,1725987094968,-672.56,0.00019727,2]
[337719941,1725987094978,-571.17,0.00019727,2]
[337719942,1725987094987,-808.61,0.00019727,2]
[337719943,1725987094997,-500.0,0.00019727,2]
[337719944,1725987095006,-500.0,0.00019727,2]
[337719945,1725987095015,-1199.35,0.00019727,2]
[337719946,1725987095026,-531.75340856,0.00019727,2]
[337719947,1725987095036,-1033.55,0.00019727,2]
[337719948,1725987095045,-1786.34,0.00019727,2]
[337719949,1725987095055,-500.0,0.00019727,2]
[337719950,1725987095064,-857.51,0.00019727,2]
[337719951,1725987095073,-500.0,0.00019727,2]
[337719952,1725987095082,-500.0,0.00019727,2]
[337719953,1725987095092,-500.0,0.00019727,2]
[337719954,1725987095102,-500.0,0.00019727,2]
[337719955,1725987095111,-742.91,0.00019727,2]
[337719956,1725987095120,-606.58,0.00019727,2]
[337719957,1725987095131,-500.0,0.00019727,2]
[337719958,1725987095142,-679.35,0.00019727,2]
[337719959,1725987095152,-500.0,0.00019727,2]
[337719960,1725987095161,-678.54,0.0001973,2]
[337719961,1725987095171,-2206.43598465,0.0001984,2]
[337719962,1725987095180,-10378.134967,0.00019863,2]
[337719963,1725987095190,-200.12184415,0.000199,2]
[337719964,1725987095199,-1039644.52327755,0.000199,2]
[337719965,1725987095208,-300.0,0.000199,8]
[337719966,1725987095218,-500.0,0.00019944,2]
[337719967,1725987095228,-74168.59507376,0.0001999,2]
[337719968,1725987095238,-1047.18,0.00019998,2]
[337719969,1725987095247,-553.54,0.00019999,2]
[337719970,1725987095257,-2363.4,0.00019999,2]
[337719971,1725987095266,-977.86,0.00019999,2]
[337719972,1725987095275,-1813.25,0.00019999,2]
[337719973,1725987095285,-1983.67,0.00019999,2]
[337719974,1725987095294,-585.68,0.00019999,2]
[337719975,1725987095303,-2056.03,0.00019999,2]
[337719976,1725987095313,-1041.82,0.00019999,2]
[337719977,1725987095322,-200.0,0.00019999,2]
[337719978,1725987095332,-500.0,0.00019999,2]
[337719979,1725987095343,-890.94,0.00019999,2]
[337719980,1725987095353,-500.0,0.00019999,2]
[337719981,1725987095363,-2908.31,0.00019999,2]
[337719982,1725987095372,-570.37,0.00019999,2]
[337719983,1725987095381,-43984.4,0.00019999,2]
[337719984,1725987095390,-500.0,0.00019999,2]
[337719985,1725987095399,-2135.99,0.00019999,2]
[337719986,1725987095409,-3517.34,0.00019999,2]
[337719987,1725987095418,-539.11,0.00019999,2]
[337719988,1725987095428,-2575.2,0.00019999,2]
[337719989,1725987095437,-7865.92,0.00019999,2]
[337719990,1725987095446,-500.0,0.00019999,2]
[337719991,1725987095456,-1299.19,0.00019999,2]
[337719992,1725987095466,-3508.18,0.00019999,2]
[337719993,1725987095475,-1213.25,0.00019999,2]
[337719994,1725987095484,-897.95,0.00019999,2]
[337719995,1725987095494,-2680.58,0.00019999,2]
[337719996,1725987095503,-500.0,0.00019999,2]
[337719997,1725987095513,-867.86,0.00019999,2]
[337719998,1725987095523,-539.4,0.00019999,2]
[337719999,1725987095532,-3969.43,0.00019999,2]
[337720000,1725987095541,-1187.95,0.00019999,2]
[337720001,1725987095550,-500.0,0.00019999,2]
[337720002,1725987095559,-8904.62,0.00019999,2]
[337720003,1725987095568,-500.0,0.00019999,2]
[337720004,1725987095578,-1301.09,0.00019999,2]
[337720005,1725987095587,-300.27268732,0.00019999,2]
[337720006,1725987095598,-1116.76,0.00019999,2]
[337720007,1725987095607,-2535.01,0.00019999,2]
[337720008,1725987095617,-500.0,0.00019999,2]
[337720009,1725987095627,-1737.23,0.00019999,2]
[337720010,1725987095636,-500.0,0.00019999,2]
[337720011,1725987095646,-1452.81,0.00019999,2]
[337720012,1725987095655,-500.0,0.00019999,2]
[337720013,1725987095664,-500.0,0.00019999,2]
[337720014,1725987095674,-3779.0,0.00019999,2]
[337720015,1725987095683,-858.0,0.0002,2]
[337720016,1725987095692,-5037.59317345,0.0002,2]
[337720017,1725987095702,-500.0,0.0002,2]
[337720018,1725987095711,-500.0,0.0002,2]
[337720019,1725987095721,-184.5,0.0002,2]
[337720020,1725987095731,-10000.0,0.0002,2]
[337720021,1725987095740,-250.0,0.0002,3]
[337720022,1725987095749,-17659.02841747,0.0002,2]
[337720023,1725987095758,-140557.86895467,0.0002,2]
[337720024,1725987095767,-14772.72367047,0.0002,2]
[337720025,1725987095777,-565.66,0.0002,2]
[337720026,1725987095786,-920.25,0.0002,2]
[337720027,1725987095795,-500.0,0.0002,2]
[337720028,1725987095804,-500.0,0.0002,2]
[337720029,1725987095814,-500.0,0.0002,2]
[337720030,1725987095826,-500.0,0.0002,2]
[337720031,1725987095836,-1099.81,0.0002,2]
[337720032,1725987095846,-1604.71,0.0002,2]
[337720033,1725987095858,-2210.6,0.0002,2]
[337720034,1725987095867,-500.0,0.0002,2]
[337720035,1725987095876,-1189.48,0.0002,2]
[337720036,1725987095888,-663.24,0.0002,2]
[337720037,1725987095897,-151.37531354,0.0002,2]
[337720038,1725987095907,-1038.53,0.0002,2]
[337720039,1725987095917,-1169.08,0.0002,2]
[337720040,1725987095927,-505.5,0.0002,2]
[337720041,1725987095936,-1822.14,0.0002,2]
[337720042,1725987095946,-720.07,0.0002,2]
[337720043,1725987095956,-2913.8,0.0002,2]
[337720044,1725987095967,-1955.94,0.0002,2]
[337720045,1725987095977,-742.92,0.0002,2]
[337720046,1725987095986,-500.0,0.0002,2]
[337720047,1725987095996,-609.62,0.0002,2]
[337720048,1725987096157,-1713.89,0.0002,2]
[337720049,1725987096169,-500.0,0.0002,2]
[337720050,1725987096179,-971.86,0.0002,2]
[337720051,1725987096189,-2284.58,0.0002,2]
[337720052,1725987096200,-1021.87,0.0002,2]
[337720053,1725987096209,-792.09,0.0002,2]
[337720054,1725987096219,-1816.79,0.0002,2]
[337720055,1725987096228,-500.0,0.0002,2]
[337720056,1725987096237,-720.94,0.0002,2]
[337720057,1725987096247,-753.23,0.0002,2]
[337720058,1725987096257,-1933.6,0.0002,2]
[337720059,1725987096266,-1008.22,0.0002,2]
[337720060,1725987096276,-1583.17,0.0002,2]
[337720061,1725987096285,-500.0,0.0002,2]
[337720062,1725987096294,-500.0,0.0002,2]
[337720063,1725987096303,-500.0,0.0002,2]
[337720064,1725987096313,-9481.22,0.0002,2]
[337720065,1725987096322,-1938.09,0.0002,2]
[337720066,1725987096332,-1806.64,0.0002,2]
[337720067,1725987096342,-589.44,0.0002,2]
[337720068,1725987096352,-500.0,0.0002,2]
[337720069,1725987096362,-1240.8,0.0002,2]
[337720070,1725987096372,-946.63,0.0002,2]
[337720071,1725987096382,-38864.62,0.0002,2]
[337720072,1725987096391,-556.02289258,0.0002,2]
[337720073,1725987096401,-2013.95,0.0002,2]
[337720074,1725987096410,-2044.37,0.0002,2]
[337720075,1725987096420,-53987.64,0.0002,2]
[337720076,1725987096431,-500.0,0.0002,2]
[337720077,1725987096441,-4713.36,0.0002,2]
[337720078,1725987096451,-535.49,0.0002,2]
[337720079,1725987096460,-500.0,0.0002,2]
[337720080,1725987096470,-965.38,0.0002,2]
[337720081,1725987096480,-806.04,0.0002,2]
[337720082,1725987096490,-500.0,0.0002,2]
[337720083,1725987096500,-500.0,0.0002,2]
[337720084,1725987096510,-2582.53,0.0002,2]
[337720085,1725987096520,-677.86,0.0002,2]
[337720086,1725987096531,-500.0,0.0002,2]
[337720087,1725987096541,-771.86,0.0002,2]
[337720088,1725987096552,-500.0,0.0002,2]
[337720089,1725987096561,-1718.58,0.0002,2]
[337720090,1725987096571,-1132.77,0.0002,2]
[337720091,1725987096580,-2709.96,0.0002,2]
[337720092,1725987096591,-652.93,0.0002,2]
[337720093,1725987096601,-5158.88,0.0002,2]
[337720094,1725987096611,-500.0,0.0002,2]
[337720095,1725987096620,-1065.08,0.00020001,2]
[337720096,1725987096629,-660.04,0.00020001,2]
[337720097,1725987096639,-500.0,0.00020001,2]
[337720098,1725987096648,-500.0,0.00020001,2]
[337720099,1725987096658,-1568.6,0.00020001,2]
[337720100,1725987096667,-792.17,0.00020001,2]
[337720101,1725987096676,-500.0,0.00020001,2]
[337720102,1725987096685,-904.46,0.00020001,2]
[337720103,1725987096695,-641.70030353,0.00020001,2]
[337720104,1725987096704,-625.22,0.00020001,2]
[337720105,1725987096713,-536.45,0.00020001,2]
[337720106,1725987096723,-500.0,0.00020001,2]
[337720107,1725987096732,-500.0,0.00020001,2]
[337720108,1725987096742,-502.6,0.00020001,2]
[337720109,1725987096751,-500.0,0.00020001,2]
[337720110,1725987096761,-1049.86,0.00020001,2]
[337720111,1725987096771,-1076.1,0.00020001,2]
[337720112,1725987096780,-532.26933556,0.00020001,2]
[337720113,1725987096789,-500.0,0.00020001,2]
[337720114,1725987096798,-165.77978644,0.00020001,2]
[337720115,1725987096808,-500.0,0.00020001,2]
[337720116,1725987096817,-500.0,0.00020001,2]
[337720117,1725987096828,-629.08,0.00020001,2]
[337720118,1725987096838,-712.42,0.00020001,2]
[337720119,1725987096848,-500.0,0.00020001,2]
[337720120,1725987096858,-500.0,0.00020001,2]
[337720121,1725987096868,-500.0,0.00020001,2]
[337720122,1725987096877,-500.0,0.00020001,2]
[337720123,1725987096889,-500.0,0.00020001,2]
[337720124,1725987096897,-852.74,0.00020001,2]
[337720125,1725987096907,-500.0,0.00020001,2]
[337720126,1725987096916,-500.0,0.00020001,2]
[337720127,1725987096927,-800.96,0.00020001,2]
[337720128,1725987096936,-649.67,0.00020001,2]
[337720129,1725987096946,-588.79,0.00020001,2]
[337720130,1725987096955,-1531.75,0.00020001,2]
[337720131,1725987096968,-677.0,0.00020001,2]
[337720132,1725987096977,-582.35,0.00020001,2]
[337720133,1725987096987,-1661.25,0.00020001,2]
[337720134,1725987096996,-500.0,0.00020001,2]
[337720135,1725987097005,-902.12,0.00020001,2]
[337720136,1725987097014,-1161.67,0.00020001,2]
[337720137,1725987097024,-1545.8,0.00020001,2]
[337720138,1725987097033,-1031.96,0.00020001,2]
[337720139,1725987097043,-500.0,0.00020001,2]
[337720140,1725987097052,-1005.54,0.00020001,2]
[337720141,1725987097061,-801.25,0.00020001,2]
[337720142,1725987097070,-682.45,0.00020001,2]
[337720143,1725987097079,-1528.95,0.00020001,2]
[337720144,1725987097090,-686.42,0.00020001,2]
[337720145,1725987097099,-500.0,0.00020001,2]
[337720146,1725987097108,-3196.6,0.00020001,2]
[337720147,1725987097117,-1720.38,0.00020001,2]
[337720148,1725987097127,-580.2,0.00020001,2]
[337720149,1725987097136,-2053.93,0.00020001,2]
[337720150,1725987097145,-522.45943652,0.00020001,2]
[337720151,1725987097154,-1653.22,0.00020001,2]
[337720152,1725987097164,-646.77918011,0.00020001,2]
[337720153,1725987097173,-2581.4,0.00020001,2]
[337720154,1725987097183,-500.0,0.00020001,2]
[337720155,1725987097192,-500.0,0.00020001,2]
[337720156,1725987097201,-582.87,0.00020001,2]
[337720157,1725987097210,-665.52,0.00020001,2]
[337720158,1725987097219,-500.0,0.00020001,2]
[337720159,1725987097228,-500.0,0.00020001,2]
[337720160,1725987097238,-624.21,0.00020001,2]
[337720161,1725987097248,-796.18,0.00020001,2]
[337720162,1725987097258,-500.0,0.00020001,2]
[337720163,1725987097268,-1602.56,0.00020001,2]
[337720164,1725987097278,-1153.39,0.00020001,2]
[337720165,1725987097287,-979.44,0.00020001,2]
[337720166,1725987097297,-629.96,0.00020001,2]
[337720167,1725987097306,-931.29,0.00020001,2]
[337720168,1725987097315,-500.0,0.00020001,2]
[337720169,1725987097325,-1387.23,0.00020001,2]
[337720170,1725987097335,-516.8,0.00020001,2]
[337720171,1725987097346,-1249.15,0.00020001,2]
[337720172,1725987097356,-500.0,0.00020001,2]
[337720173,1725987097365,-507.63,0.00020001,2]
[337720174,1725987097375,-3108.36,0.00020001,2]
[337720175,1725987097385,-1950.86,0.00020001,2]
[337720176,1725987097394,-513.58,0.00020001,2]
[337720177,1725987097403,-500.0,0.00020001,2]
[337720178,1725987097413,-1468.78,0.00020001,2]
[337720179,1725987097423,-4251.41,0.00020001,2]
[337720180,1725987097433,-500.0,0.00020001,2]
[337720181,1725987097443,-500.0,0.00020001,2]
[337720182,1725987097453,-500.0,0.00020001,2]
[337720183,1725987097463,-500.0,0.00020001,2]
[337720184,1725987097473,-818.77,0.00020001,2]
[337720185,1725987097483,-500.0,0.00020001,2]
[337720186,1725987097492,-500.0,0.00020001,2]
[337720187,1725987097501,-547.21,0.00020001,2]
[337720188,1725987097511,-889.36,0.00020001,2]
[337720189,1725987097522,-500.0,0.00020001,2]
[337720190,1725987097532,-948.67,0.00020001,2]
[337720191,1725987097542,-653.85,0.00020001,2]
[337720192,1725987097553,-527.0,0.00020001,2]
[337720193,1725987097562,-1596.56,0.00020001,2]
[337720194,1725987097571,-626.02,0.00020001,2]
[337720195,1725987097581,-500.0,0.00020001,2]
[337720196,1725987097591,-500.0,0.00020001,2]
[337720197,1725987097601,-553.2,0.00020001,2]
[337720198,1725987097610,-848.19,0.00020001,2]
[337720199,1725987097620,-500.0,0.00020001,2]
[337720200,1725987097629,-500.0,0.00020001,2]
[337720201,1725987097638,-882.16,0.00020001,2]
[337720202,1725987097648,-500.0,0.00020001,2]
[337720203,1725987097659,-578.17,0.00020001,2]
[337720204,1725987097668,-841.44,0.00020001,2]
[337720205,1725987097678,-500.0,0.00020001,2]
[337720206,1725987097688,-642.34,0.00020001,2]
[337720207,1725987097698,-791.11,0.00020001,2]
[337720208,1725987097709,-632.97199287,0.00020001,2]
[337720209,1725987097719,-1895.41,0.00020001,2]
[337720210,1725987097729,-500.0,0.00020001,2]
[337720211,1725987097739,-980.57,0.00020001,2]
[337720212,1725987097749,-500.0,0.00020001,2]
[337720213,1725987097760,-2400.44,0.00020001,2]
[337720214,1725987097770,-500.0,0.00020001,2]
[337720215,1725987097779,-1124.28,0.00020001,2]
[337720216,1725987097789,-672.56,0.00020001,2]
[337720217,1725987097799,-571.17,0.00020001,2]
[337720218,1725987097808,-808.61,0.00020001,2]
[337720219,1725987097818,-500.0,0.00020001,2]
[337720220,1725987097827,-500.0,0.00020001,2]
[337720221,1725987097836,-1199.35,0.00020001,2]
[337720222,1725987097848,-1033.55,0.00020001,2]
[337720223,1725987097858,-1786.34,0.00020001,2]
[337720224,1725987097867,-500.0,0.00020001,2]
[337720225,1725987097876,-857.51,0.00020001,2]
[337720226,1725987097889,-500.0,0.00020001,2]
[337720227,1725987097899,-500.0,0.00020001,2]
[337720228,1725987097908,-500.0,0.00020001,2]
[337720229,1725987097918,-500.0,0.00020001,2]
[337720230,1725987097927,-742.91,0.00020001,2]
[337720231,1725987097937,-606.58,0.00020001,2]
[337720232,1725987097946,-500.0,0.00020001,2]
[337720233,1725987097960,-679.35,0.00020001,2]
[337720234,1725987097969,-500.0,0.00020001,2]
[337720235,1725987097979,-2590.778334,0.00020003,2]
[337720236,1725987097988,-17441.2015695,0.00020003,2]
[337720237,1725987097997,-678.54,0.00020004,2]
[337720238,1725987098006,-190.34214402,0.0002005,2]
[337720239,1725987098015,-2561.503024,0.00020083,2]
[337720240,1725987098024,-181.452845,0.00020083,2]
[337720241,1725987098034,-204.52605,0.00020083,2]
[337720242,1725987098046,-181.452844,0.00020083,2]
[337720243,1725987098056,-203.545633,0.00020083,2]
[337720244,1725987098065,-2636.684049,0.00020083,2]
[337720245,1725987098076,-181.452844,0.00020083,2]
[337720246,1725987098085,-203.545633,0.00020083,2]
[337720247,1725987098098,-500.0,0.00020218,2]
[337720248,1725987098107,-1047.18,0.00020272,2]
[337720249,1725987098116,-553.54,0.00020273,2]
[337720250,1725987098125,-2363.4,0.00020273,2]
[337720251,1725987098135,-977.86,0.00020273,2]
[337720252,1725987098144,-1813.25,0.00020273,2]
[337720253,1725987098153,-1983.67,0.00020273,2]
[337720254,1725987098163,-585.68,0.00020273,2]
[337720255,1725987098172,-2056.03,0.00020273,2]
[337720256,1725987098181,-1041.82,0.00020273,2]
[337720257,1725987098191,-200.0,0.00020273,2]
[337720258,1725987098200,-500.0,0.00020273,2]
[337720259,1725987098210,-890.94,0.00020273,2]
[337720260,1725987098219,-500.0,0.00020273,2]
[337720261,1725987098229,-2908.31,0.00020273,2]
[337720262,1725987098238,-570.37,0.00020273,2]
[337720263,1725987098248,-43984.4,0.00020273,2]
[337720264,1725987098258,-500.0,0.00020273,2]
[337720265,1725987098268,-2135.99,0.00020273,2]
[337720266,1725987098278,-3517.34,0.00020273,2]
[337720267,1725987098288,-539.11,0.00020273,2]
[337720268,1725987098298,-2575.2,0.00020273,2]
[337720269,1725987098308,-7865.92,0.00020273,2]
[337720270,1725987098317,-500.0,0.00020273,2]
[337720271,1725987098327,-1299.19,0.00020273,2]
[337720272,1725987098336,-3508.18,0.00020273,2]
[337720273,1725987098349,-1213.25,0.00020273,2]
[337720274,1725987098358,-897.95,0.00020273,2]
[337720275,1725987098368,-2680.58,0.00020273,2]
[337720276,1725987098378,-500.0,0.00020273,2]
[337720277,1725987098388,-867.86,0.00020273,2]
[337720278,1725987098398,-539.4,0.00020273,2]
[337720279,1725987098408,-3969.43,0.00020273,2]
[337720280,1725987098418,-1187.95,0.00020273,2]
[337720281,1725987098428,-500.0,0.00020273,2]
[337720282,1725987098438,-8904.62,0.00020273,2]
[337720283,1725987098448,-500.0,0.00020273,2]
[337720284,1725987098459,-1301.09,0.00020273,2]
[337720285,1725987098468,-1116.76,0.00020273,2]
[337720286,1725987098478,-2535.01,0.00020273,2]
[337720287,1725987098488,-500.0,0.00020273,2]
[337720288,1725987098497,-1737.23,0.00020273,2]
[337720289,1725987098507,-360.22305666,0.00020273,2]
[337720290,1725987098517,-1452.81,0.00020273,2]
[337720291,1725987098527,-500.0,0.00020273,2]
[337720292,1725987098537,-500.0,0.00020273,2]
[337720293,1725987098548,-3779.0,0.00020273,2]
[337720294,1725987098558,-565.66,0.00020274,2]
[337720295,1725987098569,-920.25,0.00020274,2]
[337720296,1725987098578,-500.0,0.00020274,2]
[337720297,1725987098588,-500.0,0.00020274,2]
[337720298,1725987098603,-500.0,0.00020274,2]
[337720299,1725987098616,-500.0,0.00020274,2]
[337720300,1725987098625,-1099.81,0.00020274,2]
[337720301,1725987098636,-1604.71,0.00020274,2]
[337720302,1725987098645,-2210.6,0.00020274,2]
[337720303,1725987098655,-500.0,0.00020274,2]
[337720304,1725987098666,-1189.48,0.00020274,2]
[337720305,1725987098675,-663.24,0.00020274,2]
[337720306,1725987098685,-1038.53,0.00020274,2]
[337720307,1725987098695,-1169.08,0.00020274,2]
[337720308,1725987098706,-505.5,0.00020274,2]
[337720309,1725987098716,-1822.14,0.00020274,2]
[337720310,1725987098725,-720.07,0.00020274,2]
[337720311,1725987098736,-2913.8,0.00020274,2]
[337720312,1725987098746,-1955.94,0.00020274,2]
[337720313,1725987098756,-742.92,0.00020274,2]
[337720314,1725987098766,-500.0,0.00020274,2]
[337720315,1725987098776,-609.62,0.00020274,2]
[337720316,1725987098787,-1713.89,0.00020274,2]
[337720317,1725987098796,-500.0,0.00020274,2]
[337720318,1725987098806,-971.86,0.00020274,2]
[337720319,1725987098817,-2284.58,0.00020274,2]
[337720320,1725987098827,-1021.87,0.00020274,2]
[337720321,1725987098837,-792.09,0.00020274,2]
[337720322,1725987098853,-1816.79,0.00020274,2]
[337720323,1725987098863,-500.0,0.00020274,2]
[337720324,1725987098873,-720.94,0.00020274,2]
[337720325,1725987098883,-753.23,0.00020274,2]
[337720326,1725987098896,-1933.6,0.00020274,2]
[337720327,1725987098905,-1008.22,0.00020274,2]
[337720328,1725987098915,-1583.17,0.00020274,2]
[337720329,1725987098924,-500.0,0.00020274,2]
[337720330,1725987098935,-500.0,0.00020274,2]
[337720331,1725987098945,-237.86188222,0.00020274,2]
[337720332,1725987098955,-9481.22,0.00020274,2]
[337720333,1725987098966,-1938.09,0.00020274,2]
[337720334,1725987098975,-1806.64,0.00020274,2]
[337720335,1725987098985,-589.44,0.00020274,2]
[337720336,1725987098995,-500.0,0.00020274,2]
[337720337,1725987099005,-1240.8,0.00020274,2]
[337720338,1725987099015,-946.63,0.00020274,2]
[337720339,1725987099025,-38864.62,0.00020274,2]
[337720340,1725987099037,-2013.95,0.00020274,2]
[337720341,1725987099049,-2044.37,0.00020274,2]
[337720342,1725987099059,-53987.64,0.00020274,2]